Workbook

Sheet 2023年2月
A1: 陆 丰 市 2023 年 2月 财 政 预 算 收 入 完 成 情 况 表
A2: 2023-02-28 | L2: 单位：万元
B3: 年 度 | C3: 累 计 | D3: 占 年 | E3: 上 年 | F3: 比上年 | G3: 比上年 | H3: 本 月 | I3: 上 年 | J3: 比上年 | K3: 比上年
A4: 收 入 项 目 | B4: 预 算 | C4: 完 成 | D4: 预 算 | E4: 同 期 | F4: 同期增 | G4: 同期增 | H4: 完 成 | I4: 同 月 | J4: 同月增 | K4: 同月增 | L4: 备 注
B5: 数 | C5: 数 | D5: % | E5: 完 成 | F5: 减额 | G5: (减)% | H5: 数 | I5: 完 成 | J5: 减额 | K5: (减)%
A6: （一）税收收入 | B6: =SUM(B7:B20) -> 63,000 | C6: =SUM(C7:C20) -> 10,471 | D6: =C6/B6*100 -> 16.6 | E6: =SUM(E7:E20) -> 9,858 | F6: =C6-E6 -> 613 | G6: =F6/E6*100 -> 6.2 | H6: =H7+H8+H9+H10+H11+H12+H13+H14+H15+H16+H17+H18+H19+H20 -> 6,328 | I6: =SUM(I7:I20) -> 2,608 | J6: =H6-I6 -> 3,720 | K6: =J6/I6*100 -> 142.6
A7: 1、增值税 | B7: 15,600 | C7: 2,783 | D7: 17.8 | E7: 3,215 | F7: -432 | G7: -13.4 | H7: 1,234 | I7: 1,090 | J7: 144 | K7: 13.2
A8: 2、企业所得税 | B8: 5,500 | C8: 658 | D8: 12.0 | E8: 1,316 | F8: -658 | G8: -50.0 | H8: 47 | I8: 14 | J8: 33 | K8: 235.7
A9: 3、个人所得税 | B9: 1,250 | C9: 366 | D9: 29.3 | E9: 224 | F9: 142 | G9: 63.4 | H9: 150 | I9: 77 | J9: 73 | K9: 94.8
A10: 4、资源税 | B10: 220 | C10: 11 | D10: 5.0 | E10: 27 | F10: -16 | G10: -59.3 | I10: 6 | J10: -6 | K10: -100.0
A11: 5、城市维护建设税 | B11: 6,600 | C11: 1,031 | D11: 15.6 | E11: 1,077 | F11: -46 | G11: -4.3 | H11: 576 | I11: 578 | J11: -2 | K11: -0.3
A12: 6、房产税 | B12: 6,300 | C12: 123 | D12: 2.0 | E12: 560 | F12: =C12-E12 -> -437 | G12: -78.0 | H12: 16 | I12: 15 | J12: 1 | K12: 6.7
A13: 7、印花税 | B13: 3,480 | C13: 253 | D13: 7.3 | E13: 306 | F13: -53 | G13: -17.3 | H13: 62 | I13: 117 | J13: -55 | K13: -47.0
A14: 8、城镇土地使用税 | B14: 3,540 | C14: 36 | D14: 1.0 | E14: 207 | F14: -171 | G14: -82.6 | H14: 14 | I14: 6 | J14: 8 | K14: 133.3
A15: 9、土地增值税 | B15: 6,300 | C15: 285 | D15: 4.5 | E15: 1,845 | F15: -1,560 | G15: -84.6 | H15: 247 | I15: 226 | J15: 21 | K15: 9.3
A16: 10、车船使用税 | B16: 2,380 | C16: 360 | D16: 15.1 | E16: 339 | F16: 21 | G16: 6.2 | H16: 203 | I16: 195 | J16: 8 | K16: 4.1
A17: 11、环保税 | B17: 315 | C17: 48 | D17: 15.2 | E17: 83 | F17: -35 | G17: -42.2 | J17: 0
A18: 12、耕地占用税 | B18: 6,000 | C18: 3,266 | D18: 54.4 | F18: 3,266 | H18: 3,266 | J18: 3,266
A19: 13、契 税 | B19: 5,500 | C19: 1,251 | D19: 22.7 | E19: 659 | F19: 592 | G19: 89.8 | H19: 513 | I19: 284 | J19: 229 | K19: 80.6
A20: 14、其他税收收入 | B20: 15 | D20: 0.0 | F20: 0 | J20: 0
A21: （二）非税收入 | B21: =SUM(B22:B29) -> 62,840 | C21: =SUM(C22:C29) -> 11,051 | D21: 17.6 | E21: =E22+E23+E24+E25+E26+E27+E28+E29 -> 6,138 | F21: 4,913 | G21: 80.0 | H21: =H22+H23+H24+H25+H26+H27+H28+H29 -> 6,773 | I21: =I22+I23+I24+I25+I26+I27+I28+I29 -> 3,513 | J21: 3,260 | K21: =J21/I21*100 -> 92.8
A22: 1、专项收入 | B22: 11,610 | C22: 728 | D22: 6.3 | E22: 778 | F22: -50 | G22: -6.4 | H22: 405 | I22: 405 | J22: 0 | K22: =J22/I22*100 -> 0.0
A23: 2、行政事业性收费收入 | B23: 8,730 | C23: 5,481 | D23: 62.8 | E23: 1,154 | F23: 4,327 | G23: 375.0 | H23: 3,767 | I23: 923 | J23: 2,844 | K23: =J23/I23*100 -> 308.1
A24: 3、罚没收入 | B24: 13,580 | C24: 2,286 | D24: 16.8 | E24: 1,366 | F24: 920 | G24: 67.3 | H24: 1,329 | I24: 1,189 | J24: 140 | K24: =J24/I24*100 -> 11.8
A25: 4、国有资源（资产）有偿使用收入 | B25: 21,820 | C25: 158 | D25: 0.7 | E25: 2,378 | F25: -2,220 | G25: -93.4 | H25: 51 | I25: 791 | J25: -740 | K25: =J25/I25*100 -> -93.6
A26: 5、政府住房基金收入 | B26: 350 | C26: 105 | D26: 30.0 | F26: 105 | H26: 105 | J26: 105
A27: 6、捐赠收入 | B27: 2,000 | C27: 1,142 | D27: 57.1 | E27: 205 | F27: 937 | G27: 457.1 | H27: 246 | I27: 205 | J27: 41 | K27: 20.0
A28: 7、其他收入 | B28: 4,750 | C28: 1,146 | D28: 24.1 | E28: 257 | F28: 889 | G28: 345.9 | H28: 870 | J28: 870
A29: 8、国有资本经营收入 | B29: 0 | C29: 5 | F29: 5 | J29: 0
A30: 一、一般公共预算收入 | B30: =B6+B21 -> 125,840 | C30: =C6+C21 -> 21,522 | D30: 17.1 | E30: =E6+E21 -> 15,996 | F30: 5,526 | G30: =F30/E30*100 -> 34.5 | H30: =H6+H21 -> 13,101 | I30: =I6+I21 -> 6,121 | J30: 6,980 | K30: =J30/I30*100 -> 114.0
A31: 二、政府性基金预算收入小计 | B31: 202,260 | C31: 9,565 | D31: 4.7 | E31: 3,047 | F31: 6,518 | G31: =F31/E31*100 -> 213.9 | H31: 469 | I31: 1,070 | J31: -601 | K31: -56.2
A32: 其中：国有土地使用权出让收入 | B32: 192,000 | C32: 8,609 | D32: 4.5 | E32: 2,350 | F32: 6,259 | G32: =F32/E32*100 -> 266.3 | H32: -381 | I32: 503 | J32: -884 | K32: -175.7
A33: 三、国有资本经营收入小计 | B33: 1,500 | D33: 0.0 | E33: 20 | F33: -20 | G33: =F33/E33*100 -> -100.0 | J33: 0
A34: 收入合计 | B34: =B30+B31+B33 -> 329,600 | C34: =C30+C31+C33 -> 31,087 | D34: 9.4 | E34: =E30+E31+E33 -> 19,063 | F34: 12,024 | G34: =F34/E34*100 -> 63.1 | H34: =H30+H31+H33 -> 13,570 | I34: =I30+I31+I33 -> 7,191 | J34: 6,379 | K34: =J34/I34*100 -> 88.7
L35: 陆丰市财政局国库股
